fUST/lending_fUST_20250430
["ID","MTS","AMOUNT","RATE_DAILY","PERIOD"]
[359383514,1745965849832,-400.0,0.00028649,2]
[359383515,1745965849842,-728.24,0.00028649,2]
[359383516,1745965849852,-400.0,0.00028649,2]
[359383517,1745965849862,-151.0,0.00028649,7]
[359383518,1745965849872,-1422.9,0.00028649,2]
[359383519,1745965849882,-2294.8,0.00028649,2]
[359383520,1745965849892,-409.84,0.00028649,2]
[359383521,1745965849901,-937.84,0.00028649,2]
[359383522,1745965849911,-1024.45,0.00028649,2]
[359383523,1745965849923,-2784.61,0.00028649,2]
[359383524,1745965849933,-501.16,0.00028649,2]
[359383525,1745965849943,-1202.0,0.00028649,2]
[359383526,1745965849952,-719.18,0.00028649,2]
[359383527,1745965849963,-1358.32,0.00028649,2]
[359383528,1745965849973,-4215.29,0.00028649,2]
[359383529,1745965849983,-489.54,0.00028649,2]
[359383530,1745965849992,-359.18,0.00028657,3]
[359383531,1745965850002,-151.0,0.000287,14]
[359383532,1745965850012,-211.63333258,0.00028757,2]
[359383533,1745965850022,-400.0,0.00028766,2]
[359383534,1745965850032,-840.73483787,0.00028767,3]
[359383535,1745965850041,-160.0,0.00028767,3]
[359383536,1745965850051,-151.0,0.00028767,7]
[359383537,1745965850061,-151.0,0.00028767,7]
[359383538,1745965850070,-400.0,0.00028767,2]
[359383539,1745965850079,-400.0,0.00028767,2]
[359383540,1745965850089,-151.0,0.00028767,7]
[359383541,1745965850098,-451.98,0.00028767,2]
[359383542,1745965850108,-400.0,0.00028767,2]
[359383543,1745965850118,-400.0,0.00028767,2]
[359383544,1745965850128,-400.0,0.00028767,2]
[359383545,1745965850137,-438.8,0.00028767,2]
[359383546,1745965850147,-400.0,0.00028767,2]
[359383547,1745965850157,-400.0,0.00028767,2]
[359383548,1745965850167,-151.0,0.00028767,7]
[359383549,1745965850177,-151.0,0.00028767,7]
[359383550,1745965850186,-400.0,0.00028767,2]
[359383551,1745965850196,-161.398122,0.00028767,7]
[359383552,1745965850205,-400.0,0.00028767,2]
[359383553,1745965850215,-487.76,0.00028767,2]
[359383554,1745965850224,-400.0,0.00028767,2]
[359383555,1745965850234,-616.52,0.00028767,2]
[359383556,1745965850244,-757.11,0.00028767,2]
[359383557,1745965850253,-400.0,0.00028767,2]
[359383558,1745965850263,-151.0,0.00028767,7]
[359383559,1745965850272,-599.52,0.00028767,2]
[359383560,1745965850282,-400.0,0.00028767,2]
[359383561,1745965850292,-400.0,0.00028767,2]
[359383562,1745965850301,-400.0,0.00028767,2]
[359383563,1745965850310,-374.53747283,0.00028767,2]
[359383564,1745965850320,-400.0,0.00028767,2]
[359383565,1745965850329,-400.0,0.00028767,2]
[359383566,1745965850339,-1130.55,0.00028767,2]
[359383567,1745965850348,-151.0,0.00028767,7]
[359383568,1745965850357,-871.7,0.00028767,2]
[359383569,1745965850367,-400.0,0.00028767,2]
[359383570,1745965850376,-400.0,0.00028767,2]
[359383571,1745965850385,-400.0,0.00028767,2]
[359383572,1745965850394,-193.865721,0.00028767,7]
[359383573,1745965850404,-193.865721,0.00028767,7]
[359383574,1745965850413,-2618.11,0.00028767,2]
[359383575,1745965850423,-400.0,0.00028767,2]
[359383576,1745965850433,-418.78,0.00028767,2]
[359383577,1745965850442,-151.0,0.00028767,7]
[359383578,1745965850451,-400.0,0.00028767,2]
[359383579,1745965850461,-400.0,0.00028767,2]
[359383580,1745965850471,-934.01,0.00028767,2]
[359383581,1745965850480,-400.0,0.00028767,2]
[359383582,1745965850490,-449.90994298,0.00028767,2]
[359383583,1745965850500,-151.0,0.00028767,7]
[359383584,1745965850510,-1118.61,0.00028767,2]
[359383585,1745965850520,-405.75,0.00028767,2]
[359383586,1745965850530,-400.0,0.00028767,2]
[359383587,1745965850540,-400.0,0.00028767,2]
[359383588,1745965850549,-730.98,0.00028767,2]
[359383589,1745965850559,-400.0,0.00028767,2]
[359383590,1745965850569,-151.0,0.00028767,7]
[359383591,1745965850579,-400.0,0.00028767,2]
[359383592,1745965850589,-400.0,0.00028767,2]
[359383593,1745965850599,-400.0,0.00028767,2]
[359383594,1745965850608,-566.98,0.00028767,2]
[359383595,1745965850618,-893.77,0.00028767,2]
[359383596,1745965850628,-731.76,0.00028767,2]
[359383597,1745965850637,-1275.51,0.00028767,2]
[359383598,1745965850648,-151.0,0.00028767,2]
[359383599,1745965850658,-445.84,0.00028767,2]
[359383600,1745965850668,-1753.72,0.00028767,2]
[359383601,1745965850677,-445.02,0.00028767,2]
[359383602,1745965850689,-153.514565,0.00028767,7]
[359383603,1745965850702,-153.514565,0.00028767,7]
[359383604,1745965850712,-672.19,0.00028767,2]
[359383605,1745965850721,-1367.8,0.00028767,2]
[359383606,1745965850731,-151.0,0.00028767,7]
[359383607,1745965850741,-1033.02,0.00028767,2]
[359383608,1745965850751,-743.45,0.00028767,2]
[359383609,1745965850760,-151.0,0.00028767,7]
[359383610,1745965850770,-713.45,0.00028767,2]
[359383611,1745965850781,-402.04,0.00028767,2]
[359383612,1745965850793,-3764.84,0.00028767,2]
[359383613,1745965850804,-151.0,0.00028767,7]
[359383614,1745965850814,-3094.27,0.00028767,2]
[359383615,1745965850824,-400.0,0.00028767,2]
[359383616,1745965850834,-417.66,0.00028767,2]
[359383617,1745965850843,-400.0,0.00028767,2]
[359383618,1745965850853,-400.0,0.00028767,2]
[359383619,1745965850862,-774.0,0.00028767,2]
[359383620,1745965850871,-1191.57,0.00028767,2]
[359383621,1745965850880,-948.03,0.00028767,2]
[359383622,1745965850890,-400.0,0.00028767,2]
[359383623,1745965850899,-151.0,0.00028767,7]
[359383624,1745965850909,-1212.7,0.00028767,2]
[359383625,1745965850919,-829.03,0.00028767,2]
[359383626,1745965850928,-618.67,0.00028767,2]
[359383627,1745965850937,-2209.47,0.00028767,2]
[359383628,1745965850947,-400.0,0.00028767,2]
[359383629,1745965850956,-779.7,0.00028767,2]
[359383630,1745965850966,-400.0,0.00028767,2]
[359383631,1745965850976,-400.0,0.00028767,2]
[359383632,1745965850986,-574.83,0.00028767,2]
[359383633,1745965850997,-1051.35,0.00028767,2]
[359383634,1745965851006,-2169.26,0.00028767,2]
[359383635,1745965851016,-400.0,0.00028767,2]
[359383636,1745965851026,-400.0,0.00028767,2]
[359383637,1745965851037,-817.36,0.00028767,2]
[359383638,1745965851047,-962.08,0.00028767,2]
[359383639,1745965851056,-776.26,0.00028767,2]
[359383640,1745965851065,-400.0,0.00028767,2]
[359383641,1745965851075,-400.0,0.00028767,2]
[359383642,1745965851085,-151.0,0.00028767,7]
[359383643,1745965851094,-400.0,0.00028767,2]
[359383644,1745965851103,-400.0,0.00028767,2]
[359383645,1745965851114,-2082.61,0.00028767,2]
[359383646,1745965851125,-274.835362,0.00028767,7]
[359383647,1745965851136,-400.0,0.00028767,2]
[359383648,1745965851146,-400.0,0.00028767,2]
[359383649,1745965851155,-1118.47,0.00028767,2]
[359383650,1745965851165,-195.442268,0.00028767,7]
[359383651,1745965851175,-2991.06,0.00028767,2]
[359383652,1745965851184,-2334.65,0.00028767,2]
[359383653,1745965851193,-400.0,0.00028767,2]
[359383654,1745965851203,-439.33,0.00028767,2]
[359383655,1745965851212,-400.0,0.00028767,2]
[359383656,1745965851221,-436.46,0.00028767,2]
[359383657,1745965851231,-400.0,0.00028767,2]
[359383658,1745965851240,-151.0,0.00028767,7]
[359383659,1745965851250,-400.0,0.00028767,2]
[359383660,1745965851259,-1554.49,0.00028767,2]
[359383661,1745965851269,-1199.73,0.00028767,2]
[359383662,1745965851279,-400.0,0.00028767,2]
[359383663,1745965851289,-2606.96,0.00028767,2]
[359383664,1745965851298,-400.0,0.00028767,2]
[359383665,1745965851307,-550.32,0.00028767,2]
[359383666,1745965851317,-400.0,0.00028767,2]
[359383667,1745965851327,-151.0,0.00028767,7]
[359383668,1745965851337,-1329.8,0.00028767,2]
[359383669,1745965851346,-5657.09,0.00028767,2]
[359383670,1745965851355,-2328.55,0.00028767,2]
[359383671,1745965851365,-1398.53,0.00028767,2]
[359383672,1745965851375,-516.76,0.00028767,2]
[359383673,1745965851384,-151.0,0.00028767,7]
[359383674,1745965851395,-151.0,0.00028767,7]
[359383675,1745965851404,-160.0,0.00028772,3]
[359383676,1745965851413,-500.0,0.00028773,5]
[359383677,1745965851423,-500.0,0.00028773,5]
[359383678,1745965851432,-625.47714158,0.00028773,5]
[359383679,1745965851441,-500.0,0.00028773,5]
[359383680,1745965851451,-500.0,0.00028773,5]
[359383681,1745965851460,-257.0008805,0.00028773,5]
[359383682,1745965851469,-500.0,0.00028773,5]
[359383683,1745965851479,-500.0,0.00028773,5]
[359383684,1745965851488,-500.0,0.00028773,5]
[359383685,1745965851497,-500.0,0.00028773,5]
[359383686,1745965851507,-500.0,0.00028773,5]
[359383687,1745965851516,-500.46274838,0.00028773,3]
[359383688,1745965851526,-2596.53974516,0.00028797,8]
[359383689,1745965851535,-151.0,0.000289,13]
[359383690,1745965851544,-400.0,0.00028923,2]
[359383691,1745965851554,-400.0,0.00028923,2]
[359383692,1745965851563,-400.0,0.00028923,2]
[359383693,1745965851573,-400.0,0.00028923,2]
[359383694,1745965851583,-418.65,0.00028923,2]
[359383695,1745965851592,-478.04,0.00028923,2]
[359383696,1745965851602,-400.0,0.00028923,2]
[359383697,1745965851611,-400.0,0.00028923,2]
[359383698,1745965851620,-463.14,0.00028923,2]
[359383699,1745965851629,-963.49,0.00028923,2]
[359383700,1745965851639,-400.0,0.00028923,2]
[359383701,1745965851651,-400.0,0.00028923,2]
[359383702,1745965851660,-465.12,0.00028923,2]
[359383703,1745965851670,-806.81,0.00028923,2]
[359383704,1745965851679,-311.14027897,0.00028923,2]
[359383705,1745965851688,-400.0,0.00028923,2]
[359383706,1745965851698,-151.0,0.00028923,2]
[359383707,1745965851707,-400.0,0.00028923,2]
[359383708,1745965851717,-400.0,0.00028923,2]
[359383709,1745965851727,-410.61,0.00028923,2]
[359383710,1745965851736,-151.0,0.00028923,7]
[359383711,1745965851745,-400.0,0.00028923,2]
[359383712,1745965851755,-158.217376,0.00028923,7]
[359383713,1745965851765,-1263.83,0.00028923,2]
[359383714,1745965851774,-400.0,0.00028923,2]
[359383715,1745965851784,-400.0,0.00028923,2]
[359383716,1745965851797,-400.0,0.00028923,2]
[359383717,1745965851806,-453.97,0.00028923,2]
[359383718,1745965851816,-1383.41,0.00028923,2]
[359383719,1745965851825,-400.0,0.00028923,2]
[359383720,1745965851836,-512.01,0.00028923,2]
[359383721,1745965851846,-400.0,0.00028923,2]
[359383722,1745965851856,-728.24,0.00028923,2]
[359383723,1745965851867,-400.0,0.00028923,2]
[359383724,1745965851876,-1422.9,0.00028923,2]
[359383725,1745965851885,-2294.8,0.00028923,2]
[359383726,1745965851896,-409.84,0.00028923,2]
[359383727,1745965851906,-937.84,0.00028923,2]
[359383728,1745965851915,-1024.45,0.00028923,2]
[359383729,1745965851925,-2784.61,0.00028923,2]
[359383730,1745965851936,-501.16,0.00028923,2]
[359383731,1745965851947,-1202.0,0.00028923,2]
[359383732,1745965851957,-719.18,0.00028923,2]
[359383733,1745965851966,-1358.32,0.00028923,2]
[359383734,1745965851976,-4215.29,0.00028923,2]
[359383735,1745965851986,-489.54,0.00028923,2]
[359383736,1745965851996,-500.0,0.00028924,5]
[359383737,1745965852005,-1518.53163039,0.00029,2]
[359383738,1745965852014,-151.0,0.00029,19]
[359383739,1745965852023,-718.34,0.00029031,3]
[359383740,1745965852034,-211.63333258,0.00029031,2]
[359383741,1745965852045,-400.0,0.0002904,2]
[359383742,1745965852056,-160.0,0.00029041,3]
[359383743,1745965852065,-160.0,0.00029041,7]
[359383744,1745965852075,-151.0,0.00029041,7]
[359383745,1745965852084,-151.0,0.00029041,7]
[359383746,1745965852094,-400.0,0.00029041,2]
[359383747,1745965852104,-400.0,0.00029041,2]
[359383748,1745965852113,-451.98,0.00029041,2]
[359383749,1745965852123,-400.0,0.00029041,2]
[359383750,1745965852132,-400.0,0.00029041,2]
[359383751,1745965852142,-400.0,0.00029041,2]
[359383752,1745965852153,-438.8,0.00029041,2]
[359383753,1745965852163,-400.0,0.00029041,2]
[359383754,1745965852172,-400.0,0.00029041,2]
[359383755,1745965852182,-151.0,0.00029041,7]
[359383756,1745965852191,-151.0,0.00029041,7]
[359383757,1745965852309,-400.0,0.00029041,2]
[359383758,1745965852320,-400.0,0.00029041,2]
[359383759,1745965852329,-487.76,0.00029041,2]
[359383760,1745965852339,-372.30546152,0.00029041,2]
[359383761,1745965852350,-616.52,0.00029041,2]
[359383762,1745965852360,-757.11,0.00029041,2]
[359383763,1745965852369,-400.0,0.00029041,2]
[359383764,1745965852379,-151.0,0.00029041,7]
[359383765,1745965852388,-599.52,0.00029041,2]
[359383766,1745965852398,-400.0,0.00029041,2]
[359383767,1745965852407,-400.0,0.00029041,2]
[359383768,1745965852417,-400.0,0.00029041,2]
[359383769,1745965852426,-400.0,0.00029041,2]
[359383770,1745965852437,-400.0,0.00029041,2]
[359383771,1745965852447,-1130.55,0.00029041,2]
[359383772,1745965852457,-871.7,0.00029041,2]
[359383773,1745965852467,-151.0,0.00029041,7]
[359383774,1745965852477,-400.0,0.00029041,2]
[359383775,1745965852486,-400.0,0.00029041,2]
[359383776,1745965852496,-400.0,0.00029041,2]
[359383777,1745965852506,-193.865721,0.00029041,7]
[359383778,1745965852515,-193.865721,0.00029041,7]
[359383779,1745965852525,-2618.11,0.00029041,2]
[359383780,1745965852535,-150.90382215,0.00029041,2]
[359383781,1745965852545,-418.78,0.00029041,2]
[359383782,1745965852554,-151.0,0.00029041,7]
[359383783,1745965852564,-400.0,0.00029041,2]
[359383784,1745965852573,-400.0,0.00029041,2]
[359383785,1745965852584,-934.01,0.00029041,2]
[359383786,1745965852593,-400.0,0.00029041,2]
[359383787,1745965852604,-1118.61,0.00029041,2]
[359383788,1745965852613,-405.75,0.00029041,2]
[359383789,1745965852623,-400.0,0.00029041,2]
[359383790,1745965852633,-400.0,0.00029041,2]
[359383791,1745965852643,-730.98,0.00029041,2]
[359383792,1745965852653,-400.0,0.00029041,2]
[359383793,1745965852663,-151.0,0.00029041,7]
[359383794,1745965852673,-400.0,0.00029041,2]
[359383795,1745965852682,-400.0,0.00029041,2]
[359383796,1745965852691,-400.0,0.00029041,2]
[359383797,1745965852701,-566.98,0.00029041,2]
[359383798,1745965852711,-893.77,0.00029041,2]
[359383799,1745965852720,-731.76,0.00029041,2]
[359383800,1745965852730,-1275.51,0.00029041,2]
[359383801,1745965852740,-445.84,0.00029041,2]
[359383802,1745965852750,-1753.72,0.00029041,2]
[359383803,1745965852760,-445.02,0.00029041,2]
[359383804,1745965852769,-153.514565,0.00029041,7]
[359383805,1745965852779,-153.514565,0.00029041,7]
[359383806,1745965852791,-672.19,0.00029041,2]
[359383807,1745965852800,-1367.8,0.00029041,2]
[359383808,1745965852811,-1033.02,0.00029041,2]
[359383809,1745965852821,-743.45,0.00029041,2]
[359383810,1745965852833,-713.45,0.00029041,2]
[359383811,1745965852844,-402.04,0.00029041,2]
[359383812,1745965852854,-3764.84,0.00029041,2]
[359383813,1745965852864,-151.0,0.00029041,7]
[359383814,1745965852873,-3094.27,0.00029041,2]
[359383815,1745965852882,-400.0,0.00029041,2]
[359383816,1745965852892,-417.66,0.00029041,2]
[359383817,1745965852902,-400.0,0.00029041,2]
[359383818,1745965852911,-400.0,0.00029041,2]
[359383819,1745965852920,-774.0,0.00029041,2]
[359383820,1745965852931,-1191.57,0.00029041,2]
[359383821,1745965852941,-948.03,0.00029041,2]
[359383822,1745965852951,-400.0,0.00029041,2]
[359383823,1745965852962,-151.0,0.00029041,7]
[359383824,1745965852972,-1212.7,0.00029041,2]
[359383825,1745965852981,-829.03,0.00029041,2]
[359383826,1745965852991,-618.67,0.00029041,2]
[359383827,1745965853001,-2209.47,0.00029041,2]
[359383828,1745965853010,-400.0,0.00029041,2]
[359383829,1745965853019,-779.7,0.00029041,2]
[359383830,1745965853028,-400.0,0.00029041,2]
[359383831,1745965853038,-400.0,0.00029041,2]
[359383832,1745965853047,-574.83,0.00029041,2]
[359383833,1745965853056,-1051.35,0.00029041,2]
[359383834,1745965853066,-2169.26,0.00029041,2]
[359383835,1745965853075,-400.0,0.00029041,2]
[359383836,1745965853085,-203.87984009,0.00029041,2]
[359383837,1745965853094,-817.36,0.00029041,2]
[359383838,1745965853103,-962.08,0.00029041,2]
[359383839,1745965853112,-776.26,0.00029041,2]
[359383840,1745965853121,-400.0,0.00029041,2]
[359383841,1745965853131,-400.0,0.00029041,2]
[359383842,1745965853141,-400.0,0.00029041,2]
[359383843,1745965853150,-151.0,0.00029041,7]
[359383844,1745965853160,-400.0,0.00029041,2]
[359383845,1745965853169,-2082.61,0.00029041,2]
[359383846,1745965853178,-400.0,0.00029041,2]
[359383847,1745965853188,-400.0,0.00029041,2]
[359383848,1745965853197,-1118.47,0.00029041,2]
[359383849,1745965853206,-2991.06,0.00029041,2]
[359383850,1745965853218,-2334.65,0.00029041,2]
[359383851,1745965853227,-400.0,0.00029041,2]
[359383852,1745965853237,-439.33,0.00029041,2]
[359383853,1745965853246,-400.0,0.00029041,2]
[359383854,1745965853256,-436.46,0.00029041,2]
[359383855,1745965853265,-151.0,0.00029041,7]
[359383856,1745965853275,-400.0,0.00029041,2]
[359383857,1745965853284,-1554.49,0.00029041,2]
[359383858,1745965853293,-1199.73,0.00029041,2]
[359383859,1745965853303,-400.0,0.00029041,2]
[359383860,1745965853312,-2606.96,0.00029041,2]
[359383861,1745965853321,-400.0,0.00029041,2]
[359383862,1745965853330,-550.32,0.00029041,2]
[359383863,1745965853339,-400.0,0.00029041,2]
[359383864,1745965853349,-151.0,0.00029041,7]
[359383865,1745965853358,-1329.8,0.00029041,2]
[359383866,1745965853367,-5657.09,0.00029041,2]
[359383867,1745965853377,-2328.55,0.00029041,2]
[359383868,1745965853387,-1398.53,0.00029041,2]
[359383869,1745965853399,-516.76,0.00029041,2]
[359383870,1745965853408,-151.0,0.00029041,7]
[359383871,1745965853418,-258.73386,0.00029041,7]
[359383872,1745965853427,-540.82924944,0.00029073,5]
[359383873,1745965853437,-500.0,0.00029073,5]
[359383874,1745965853447,-500.0,0.00029073,5]
[359383875,1745965853457,-500.99068703,0.00029073,5]
[359383876,1745965853467,-500.0,0.00029073,5]
[359383877,1745965853477,-151.0,0.00029073,7]
[359383878,1745965853487,-193.865721,0.00029073,7]
[359383879,1745965853496,-193.865721,0.00029073,7]
[359383880,1745965853505,-151.0,0.000291,11]
[359383881,1745965853514,-151.0,0.000291,16]
[359383882,1745965853523,-400.0,0.00029196,2]
[359383883,1745965853533,-400.0,0.00029196,2]
[359383884,1745965853542,-298.88,0.00029196,2]
[359383885,1745965853552,-400.0,0.00029196,2]
[359383886,1745965853561,-418.65,0.00029196,2]
[359383887,1745965853571,-478.04,0.00029196,2]
[359383888,1745965853583,-400.0,0.00029196,2]
[359383889,1745965853593,-400.0,0.00029196,2]
[359383890,1745965853603,-463.14,0.00029196,2]
[359383891,1745965853613,-963.49,0.00029196,2]
[359383892,1745965853622,-400.0,0.00029196,2]
[359383893,1745965853632,-400.0,0.00029196,2]
[359383894,1745965853642,-465.12,0.00029196,2]
[359383895,1745965853653,-806.81,0.00029196,2]
[359383896,1745965853662,-400.0,0.00029196,2]
[359383897,1745965853672,-151.0,0.00029196,2]
[359383898,1745965853682,-400.0,0.00029196,2]
[359383899,1745965853691,-400.0,0.00029196,2]
[359383900,1745965853701,-410.61,0.00029196,2]
[359383901,1745965853710,-151.0,0.00029196,7]
[359383902,1745965853719,-400.0,0.00029196,2]
[359383903,1745965853729,-1263.83,0.00029196,2]
[359383904,1745965853738,-400.0,0.00029196,2]
[359383905,1745965853749,-400.0,0.00029196,2]
[359383906,1745965853759,-400.0,0.00029196,2]
[359383907,1745965853769,-453.97,0.00029196,2]
[359383908,1745965853779,-1383.41,0.00029196,2]
[359383909,1745965853790,-400.0,0.00029196,2]
[359383910,1745965853800,-512.01,0.00029196,2]
[359383911,1745965853809,-400.0,0.00029196,2]
[359383912,1745965853819,-728.24,0.00029196,2]
[359383913,1745965853828,-400.0,0.00029196,2]
[359383914,1745965853838,-1422.9,0.00029196,2]
[359383915,1745965853848,-2294.8,0.00029196,2]
[359383916,1745965853858,-409.84,0.00029196,2]
[359383917,1745965853869,-937.84,0.00029196,2]
[359383918,1745965853879,-1024.45,0.00029196,2]
[359383919,1745965853888,-2784.61,0.00029196,2]
[359383920,1745965853900,-501.16,0.00029196,2]
[359383921,1745965853910,-1202.0,0.00029196,2]
[359383922,1745965853919,-719.18,0.00029196,2]
[359383923,1745965853928,-1358.32,0.00029196,2]
[359383924,1745965853938,-4215.29,0.00029196,2]
[359383925,1745965853948,-489.54,0.00029196,2]
[359383926,1745965853957,-2596.53974516,0.00029245,8]
[359383927,1745965853967,-151.0,0.000293,12]
[359383928,1745965853977,-151.0,0.000293,15]
[359383929,1745965853987,-211.63333258,0.00029305,2]
[359383930,1745965853997,-400.0,0.00029314,2]
[359383931,1745965854007,-160.0,0.00029315,3]
[359383932,1745965854016,-151.0,0.00029315,7]
[359383933,1745965854026,-151.0,0.00029315,7]
[359383934,1745965854035,-400.0,0.00029315,2]
[359383935,1745965854045,-400.0,0.00029315,2]
[359383936,1745965854055,-451.98,0.00029315,2]
[359383937,1745965854064,-400.0,0.00029315,2]
[359383938,1745965854074,-400.0,0.00029315,2]
[359383939,1745965854084,-400.0,0.00029315,2]
[359383940,1745965854093,-438.8,0.00029315,2]
[359383941,1745965854102,-400.0,0.00029315,2]
[359383942,1745965854112,-400.0,0.00029315,2]
[359383943,1745965854121,-151.0,0.00029315,7]
[359383944,1745965854131,-151.0,0.00029315,7]
[359383945,1745965854141,-400.0,0.00029315,2]
[359383946,1745965854153,-400.0,0.00029315,2]
[359383947,1745965854162,-487.76,0.00029315,2]
[359383948,1745965854172,-616.52,0.00029315,2]
[359383949,1745965854181,-757.11,0.00029315,2]
[359383950,1745965854191,-400.0,0.00029315,2]
[359383951,1745965854201,-191.25831,0.00029315,7]
[359383952,1745965854211,-599.52,0.00029315,2]
[359383953,1745965854220,-400.0,0.00029315,2]
[359383954,1745965854230,-400.0,0.00029315,2]
[359383955,1745965854240,-400.0,0.00029315,2]
[359383956,1745965854249,-400.0,0.00029315,2]
[359383957,1745965854259,-400.0,0.00029315,2]
[359383958,1745965854269,-1130.55,0.00029315,2]
[359383959,1745965854279,-871.7,0.00029315,2]
[359383960,1745965854288,-151.0,0.00029315,7]
[359383961,1745965854299,-400.0,0.00029315,2]
[359383962,1745965854308,-400.0,0.00029315,2]
[359383963,1745965854318,-400.0,0.00029315,2]
[359383964,1745965854328,-193.865721,0.00029315,7]
[359383965,1745965854338,-193.865721,0.00029315,7]
[359383966,1745965854347,-2618.11,0.00029315,2]
[359383967,1745965854357,-418.78,0.00029315,2]
[359383968,1745965854367,-151.0,0.00029315,7]
[359383969,1745965854376,-400.0,0.00029315,2]
[359383970,1745965854386,-400.0,0.00029315,2]
[359383971,1745965854395,-934.01,0.00029315,2]
[359383972,1745965854406,-400.0,0.00029315,2]
[359383973,1745965854415,-1118.61,0.00029315,2]
[359383974,1745965854425,-405.75,0.00029315,2]
[359383975,1745965854434,-400.0,0.00029315,2]
[359383976,1745965854444,-400.0,0.00029315,2]
[359383977,1745965854454,-730.98,0.00029315,2]
[359383978,1745965854463,-400.0,0.00029315,2]
[359383979,1745965854473,-151.0,0.00029315,7]
[359383980,1745965854482,-400.0,0.00029315,2]
[359383981,1745965854492,-400.0,0.00029315,2]
[359383982,1745965854501,-400.0,0.00029315,2]
[359383983,1745965854511,-566.98,0.00029315,2]
[359383984,1745965854520,-893.77,0.00029315,2]
[359383985,1745965854530,-731.76,0.00029315,2]
[359383986,1745965854539,-1275.51,0.00029315,2]
[359383987,1745965854549,-445.84,0.00029315,2]
[359383988,1745965854558,-1753.72,0.00029315,2]
[359383989,1745965854568,-445.02,0.00029315,2]
[359383990,1745965854579,-153.514565,0.00029315,7]
[359383991,1745965854589,-153.514565,0.00029315,7]
[359383992,1745965854599,-672.19,0.00029315,2]
[359383993,1745965854608,-1367.8,0.00029315,2]
[359383994,1745965854725,-1033.02,0.00029315,2]
[359383995,1745965854735,-743.45,0.00029315,2]
[359383996,1745965854746,-713.45,0.00029315,2]
[359383997,1745965854757,-402.04,0.00029315,2]
[359383998,1745965854766,-3764.84,0.00029315,2]
[359383999,1745965854775,-151.0,0.00029315,7]
[359384000,1745965854785,-3094.27,0.00029315,2]
[359384001,1745965854797,-417.66,0.00029315,2]
[359384002,1745965854807,-400.0,0.00029315,2]
[359384003,1745965854817,-400.0,0.00029315,2]
[359384004,1745965854826,-400.0,0.00029315,2]
[359384005,1745965854836,-774.0,0.00029315,2]
[359384006,1745965854845,-1191.57,0.00029315,2]
[359384007,1745965854854,-948.03,0.00029315,2]
[359384008,1745965854864,-400.0,0.00029315,2]
[359384009,1745965854874,-151.0,0.00029315,7]
[359384010,1745965854884,-1212.7,0.00029315,2]
[359384011,1745965854894,-829.03,0.00029315,2]
[359384012,1745965854905,-618.67,0.00029315,2]
[359384013,1745965854915,-2209.47,0.00029315,2]